bitfinex/quotes_ETHUSD_20250403
["timestamp","ask_amount","ask_price","bid_price","bid_amount"]
[1743662769081,5.176,1822.4,1822.2,5.48787]
[1743662770107,5.176,1822.4,1822.1,5.48816]
[1743662770308,5.48726,1822.4,1822.1,5.48816]
[1743662770799,10.97469,1822.4,1822.0,6.28391]
[1743662771018,5.48726,1822.4,1822.0,11.7722]
[1743662771188,5.48777,1822.3,1822.0,0.7955]
[1743662771520,7.102255,1822.4,1822.0,11.77228]
[1743662771886,12.589685,1822.4,1822.0,6.28381]
[1743662773216,7.102255,1822.4,1822.1,5.48816]
[1743662773424,5.48733,1822.4,1822.1,5.48816]
[1743662773797,10.66198,1822.5,1822.1,10.97618]
[1743662774389,10.66198,1822.5,1822.1,5.48802]
[1743662774715,5.48727,1822.4,1822.1,5.48802]
[1743662776318,5.48771,1822.3,1822.0,6.28395]
[1743662777288,5.48771,1822.3,1822.0,11.77228]
[1743662777806,5.48771,1822.3,1822.0,6.28383]
[1743662779121,5.48771,1822.3,1822.0,11.77218]
[1743662779321,5.61999,1822.6,1822.1,0.05488087]
[1743662779620,5.175,1822.7,1822.5,5.48692]
[1743662779818,0.28422835,1822.8,1822.7,5.48636]
[1743662780031,0.59042184,1822.8,1822.6,5.48655]
[1743662780818,11.07923322,1822.9,1822.6,10.97308]
[1743662781011,11.07923322,1822.9,1822.6,11.76978]
[1743662781623,5.45924322,1822.9,1822.7,5.48621]
[1743662781925,5.175,1822.9,1822.8,5.48606]
[1743662782217,5.175,1822.9,1822.7,5.48621]
[1743662782724,10.66076,1822.9,1822.6,0.7967]
[1743662783023,5.48611,1822.8,1822.5,5.48683]
[1743662783791,5.48611,1822.8,1822.5,10.97368]
[1743662784005,11.726815,1822.9,1822.6,5.48651]
[1743662784207,0.10428374,1822.8,1822.6,5.48651]
[1743662784406,10.66076,1822.9,1822.6,5.48651]
[1743662785289,5.48616,1822.8,1822.5,5.48683]
[1743662785688,6.30676,1822.8,1822.5,10.97366]
[1743662785932,10.66076,1822.9,1822.5,10.97366]
[1743662787233,5.175,1822.9,1822.8,5.48606]
[1743662787611,5.175,1822.9,1822.7,5.48623]
[1743662788235,11.48957,1822.9,1822.5,8.075586]
[1743662788445,11.48957,1822.9,1822.5,6.84271]
[1743662788894,5.48608,1822.8,1822.5,12.32958]
[1743662789093,11.48957,1822.9,1822.6,5.48666]
[1743662789328,5.175,1822.9,1822.7,5.48634]
[1743662789634,5.175,1822.9,1822.6,5.48653]
[1743662789800,5.48623,1822.8,1822.5,6.84282]
[1743662790005,11.46251185,1822.9,1822.5,12.32969]
[1743662790530,16.94854185,1822.9,1822.5,6.84277]
[1743662791230,16.94854185,1822.9,1822.5,12.32963]
[1743662791937,5.48607,1822.8,1822.5,6.84276]
[1743662792528,5.48607,1822.8,1822.5,5.48686]
[1743662792529,11.79633,1822.8,1822.5,5.48686]
[1743662792733,13.57363318,1822.8,1822.5,5.48686]
[1743662794432,13.85783581,1822.8,1822.4,5.48724]
[1743662795232,5.48638,1822.7,1822.4,5.48724]
[1743662796023,5.77056235,1822.7,1822.4,5.48724]
[1743662796632,5.77056235,1822.7,1822.4,10.97438]
[1743662796829,5.77056235,1822.7,1822.4,5.48714]
[1743662797037,5.48733,1822.4,1822.1,5.48807]
[1743662797338,5.48789,1822.2,1822.0,0.8213]
[1743662797496,6.26677,1822.3,1821.9,10.97735]
[1743662797700,11.75451,1822.3,1821.9,5.48863]
[1743662798632,10.66027,1822.4,1821.8,0.8213]
[1743662798837,5.173,1822.4,1822.3,0.7714]
[1743662801557,5.4877,1822.3,1822.0,5.4884]
[1743662801741,5.4877,1822.3,1822.0,5.54327915]
[1743662801952,5.4877,1822.3,1822.0,5.4884]
[1743662802328,5.4877,1822.3,1822.0,10.97673]
[1743662803164,1.696386,1822.3,1821.9,0.8182]
[1743662803350,5.48823,1822.1,1821.8,6.24124]
[1743662803726,5.48892,1821.9,1821.6,0.8263]
[1743662803929,5.48923,1821.8,1821.4,6.31647]
[1743662804128,10.9785,1821.8,1821.4,6.31644]
[1743662804836,5.48939,1821.7,1821.4,6.31644]
[1743662805148,5.48984,1821.6,1821.2,6.24725]
[1743662805362,10.66284,1821.6,1821.2,6.24725]
[1743662805535,5.49008,1821.5,1821.2,6.24725]
[1743662805861,5.49008,1821.5,1821.2,0.7565]
[1743662806052,5.49008,1821.5,1821.2,6.24734]
[1743662811218,6.39639,1821.7,1821.2,2.05116537]
[1743662811367,17.05981,1821.7,1821.3,5.49058]
[1743662811677,17.05981,1821.7,1821.3,10.981]
[1743662812633,22.54936,1821.7,1821.3,5.49042]
[1743662813075,5.48974,1821.6,1821.3,5.49042]
[1743662813261,5.48974,1821.6,1821.2,11.73812]
[1743662813449,5.48974,1821.6,1821.2,13.28949136]
[1743662813771,5.48974,1821.6,1821.2,13.28943136]
[1743662813978,10.97969,1821.6,1821.2,7.79864136]
[1743662814345,5.48974,1821.6,1821.2,13.28938136]
[1743662814841,5.77409606,1821.6,1821.2,13.28938136]
[1743662815043,11.26397606,1821.6,1821.2,7.79861136]
[1743662815285,11.26397606,1821.6,1821.2,13.28939136]
[1743662815469,11.26392606,1821.6,1821.2,7.79861136]
[1743662816587,5.49002,1821.5,1821.2,7.79861136]
[1743662816795,5.49002,1821.5,1821.2,13.28939136]
[1743662816997,5.77409606,1821.6,1821.3,5.49049]
[1743662817199,0.28435606,1821.6,1821.4,10.98038]
[1743662817405,0.28435606,1821.6,1821.5,6.26558]
[1743662817554,0.28435606,1821.6,1821.5,6.87047502]
[1743662817893,5.175,1822.0,1821.7,5.48929]
[1743662818256,0.28422879,1821.9,1821.7,5.48929]
[1743662818452,5.77312879,1821.9,1821.6,5.48963]
[1743662818669,11.26204879,1821.9,1821.6,5.48963]
[1743662819103,11.26213879,1821.9,1821.5,6.26543]
[1743662819699,6.28464,1821.8,1821.5,5.48983]
[1743662820306,0.7955,1821.8,1821.5,10.97969]
[1743662820473,6.59582879,1821.9,1821.5,10.97969]
[1743662821268,12.08475879,1821.9,1821.5,10.97969]
[1743662821611,6.59582879,1821.9,1821.6,5.48965]
[1743662821767,12.08476879,1821.9,1821.5,10.97969]
[1743662822518,6.59582879,1821.9,1821.6,5.48964]
[1743662822709,12.08474879,1821.9,1821.6,5.48964]
[1743662823206,12.08478879,1821.9,1821.6,5.48964]
[1743662824576,5.48914,1821.8,1821.5,5.48983]
[1743662825101,5.48914,1821.8,1821.4,10.98046]
[1743662825303,5.48914,1821.8,1821.5,5.48996]
[1743662825478,0.28433006,1821.7,1821.5,5.48996]
[1743662826632,0.28433006,1821.7,1821.4,10.98041]
[1743662826830,5.77377006,1821.7,1821.4,5.49018]
[1743662826990,0.8109,1821.5,1821.2,5.49078]
[1743662827327,6.30088,1821.5,1821.2,5.49078]
[1743662827511,6.30088,1821.5,1821.2,10.98157]
[1743662827720,0.8109,1821.5,1821.2,10.98157]
[1743662829625,5.175,1821.6,1821.3,5.49056]
[1743662830187,10.66469,1821.6,1821.3,5.49056]
[1743662830532,0.7896,1821.5,1821.1,0.1]
[1743662830829,10.98109,1821.4,1821.1,0.1]
[1743662831017,5.49053,1821.4,1821.1,0.1]
[1743662832472,5.49053,1821.4,1821.1,5.59114]
[1743662832833,6.27964,1821.5,1821.1,11.08221]
[1743662833050,11.76977,1821.5,1821.1,11.08221]
[1743662833230,6.27964,1821.5,1821.1,11.08221]
[1743662833770,11.76978,1821.5,1821.1,11.08221]
[1743662834143,13.464258,1821.5,1821.1,5.59107]
[1743662834580,5.49036,1821.4,1821.1,5.59107]
[1743662835128,11.11035,1821.4,1821.1,0.1]
[1743662836377,5.49067,1821.3,1821.1,0.1]
[1743662836683,11.44128,1821.2,1821.1,0.1]
[1743662836893,13.134475,1821.2,1821.1,0.1]
[1743662839059,13.117175,1821.2,1821.1,0.1]
[1743662845169,13.40159335,1821.2,1821.1,0.1]
[1743662846989,0.28441835,1821.2,1821.1,5.59118]
[1743662847188,0.28441835,1821.2,1821.1,6.19609006]
[1743662847389,0.28441835,1821.2,1821.1,6.14118]
[1743662851507,0.28441835,1821.2,1821.1,5.59118]
[1743662851676,0.28441835,1821.2,1821.1,0.1]
[1743662854608,10.15660018,1821.2,1821.1,0.1]
[1743662854790,9.87218183,1821.2,1821.1,0.1]
[1743662861927,0.8038,1821.2,1821.1,0.1]
[1743662862123,5.61999,1821.3,1821.2,5.49088]
[1743662862425,10.79599,1821.3,1821.1,11.08211]
[1743662863106,10.79599,1821.3,1821.2,5.49088]
[1743662863296,10.79599,1821.3,1821.2,6.599073]
[1743662863496,10.79599,1821.3,1821.2,1.108193]
[1743662865124,10.79599,1821.3,1821.1,11.08211]
[1743662865125,10.79599,1821.3,1821.1,5.59105]
[1743662866220,10.79599,1821.3,1821.1,11.08208]
[1743662866388,10.79599,1821.3,1821.2,5.49088]
[1743662867823,10.79599,1821.3,1821.1,5.59103]
[1743662868127,5.176,1821.3,1821.1,5.59103]
[1743662868421,5.176,1821.3,1821.1,0.1]
[1743662868623,5.176,1821.3,1821.1,5.59099]
[1743662869032,5.176,1821.3,1821.1,12.268652]
[1743662869195,5.176,1821.3,1821.1,6.777632]
[1743662871029,5.176,1821.3,1821.2,5.49088]
[1743662873543,5.176,1821.3,1821.1,6.777632]
[1743662873727,5.176,1821.3,1821.1,0.1]
[1743662873932,11.44084,1821.3,1821.1,0.1]
[1743662876413,5.176,1821.3,1821.1,5.59101]
[1743662876612,5.176,1821.3,1821.2,5.49088]
[1743662876944,5.176,1821.3,1821.1,6.34951]
[1743662878847,5.176,1821.3,1821.1,0.8585]
[1743662879011,5.176,1821.3,1821.1,0.1]
[1743662879012,10.6666,1821.3,1821.1,0.1]
[1743662879513,5.176,1821.3,1821.2,5.49088]
[1743662880313,5.176,1821.3,1821.1,5.59118]
[1743662880765,10.66658,1821.3,1821.1,0.1]
[1743662880963,5.176,1821.3,1821.1,0.1]
[1743662881562,5.176,1821.3,1821.1,5.59116]
[1743662881913,5.176,1821.3,1821.1,11.08225]
[1743662882562,5.176,1821.3,1821.1,5.59109]
[1743662882744,5.176,1821.3,1821.2,5.49088]
[1743662884652,5.176,1821.3,1821.1,5.59106]
[1743662884850,5.176,1821.3,1821.1,0.1]
[1743662885071,5.176,1821.3,1821.1,5.5911]
[1743662885467,5.176,1821.3,1821.1,0.1]
[1743662885870,5.176,1821.3,1821.1,5.59113]
[1743662886043,5.176,1821.3,1821.2,5.49088]
[1743662886244,11.80189,1821.5,1821.2,5.49088]
[1743662886460,3.0,1821.7,1821.5,5.48998]
[1743662886461,0.85437223,1821.7,1821.5,5.48998]
[1743662886643,0.28437644,1821.9,1821.7,5.48912]
[1743662886988,5.175,1822.0,1821.8,5.48907]
[1743662887160,5.175,1822.0,1821.7,10.97838]
[1743662887709,5.175,1822.0,1821.7,5.48912]
[1743662887710,13.216063,1822.0,1821.7,5.48912]
[1743662887878,5.48916,1821.8,1821.6,0.7778]
[1743662888058,10.978,1821.9,1821.5,5.48982]
[1743662888253,13.216013,1822.0,1821.6,5.48947]
[1743662888457,1.3216013,1821.9,1821.6,5.48947]
[1743662888769,5.175,1822.0,1821.7,6.28608]
[1743662889089,5.175,1822.0,1821.8,5.48904]
[1743662891291,10.79399,1822.1,1822.0,5.48847]
[1743662891488,11.10709,1822.5,1822.1,5.48795]
[1743662891779,6.47394993,1822.5,1822.3,5.48756]
[1743662892098,5.61999,1822.5,1822.4,5.48726]
[1743662892299,5.174,1822.6,1822.4,10.97452]
[1743662892587,5.174,1822.6,1822.4,5.48717]
[1743662892939,5.174,1822.6,1822.4,10.97433]
[1743662893141,5.174,1822.6,1822.4,5.48716]
[1743662893390,5.174,1822.6,1822.5,5.48696]
[1743662893757,5.174,1822.6,1822.4,5.48716]
[1743662894275,5.174,1822.6,1822.3,11.78605]
[1743662894472,5.174,1822.6,1822.4,5.48725]
[1743662894640,7.040336,1822.6,1822.1,0.8247]
[1743662894845,5.48696,1822.5,1822.1,0.8247]
[1743662895045,12.660326,1822.6,1822.2,10.9754]
[1743662895046,18.147046,1822.6,1822.2,10.9754]
[1743662895245,10.79299,1822.6,1822.4,5.48711]
[1743662895497,5.173,1822.6,1822.5,5.48696]
[1743662902792,5.172,1822.8,1822.7,5.48636]
[1743662902963,5.172,1822.8,1822.6,5.4865]
[1743662903681,5.172,1822.8,1822.6,10.97302]
[1743662904176,5.172,1822.8,1822.6,5.4865]
[1743662904685,6.2957,1822.7,1822.4,6.3172]
[1743662905052,5.4864,1822.7,1822.4,11.80435]
[1743662905289,16.14468,1822.8,1822.4,11.80435]
[1743662905682,16.14468,1822.8,1822.4,6.31715]
[1743662905882,13.00111307,1822.8,1822.5,5.48696]
[1743662907479,10.65834,1822.8,1822.5,5.48696]
[1743662907778,0.2858351,1822.7,1822.4,6.31715]
[1743662908871,0.2858351,1822.7,1822.4,11.80428]
[1743662909684,0.2858351,1822.7,1822.4,11.80426]
[1743662910785,5.7722151,1822.7,1822.4,6.31713]
[1743662911285,5.7722151,1822.7,1822.4,11.80427]
[1743662911987,5.7722151,1822.7,1822.4,6.31713]
[1743662912762,5.48752,1822.4,1822.0,5.48837]
[1743662913110,5.48752,1822.4,1821.8,0.7545]
[1743662913111,5.171,1822.4,1821.8,6.29843871]
[1743662913251,10.65835,1822.4,1822.1,5.488]
[1743662913456,16.14577,1822.4,1822.1,5.488]
[1743662915355,10.65835,1822.4,1822.1,5.488]
[1743662915563,5.171,1822.5,1822.4,5.48726]
[1743662915783,5.171,1822.5,1822.3,5.48757]
[1743662916084,5.171,1822.5,1822.3,5.48731]
[1743662916273,5.171,1822.5,1822.4,5.48726]
[1743662917086,5.171,1822.5,1822.3,5.48731]
[1743662917299,11.41972,1822.5,1822.1,6.03807]
[1743662917589,16.90695,1822.5,1822.1,11.5261]
[1743662917784,11.41972,1822.5,1822.2,5.48782]
[1743662918304,11.41972,1822.5,1822.2,10.97559]
[1743662918464,5.9325,1822.5,1822.2,10.97559]
[1743662920597,5.9325,1822.5,1822.2,10.97555]
[1743662920797,5.9325,1822.5,1822.2,10.97554]
[1743662922897,6.21832424,1822.5,1822.2,10.97554]
[1743662925200,6.21832424,1822.5,1822.1,7.58077026]
[1743662925401,5.4881,1822.2,1821.8,6.29655]
[1743662925576,5.9777,1822.1,1821.8,6.29655]
[1743662925904,5.17,1822.1,1821.9,5.48863]
[1743662926070,5.17,1822.1,1821.9,10.97726]
[1743662926507,5.17,1822.1,1821.9,10.97729]
[1743662927601,5.17,1822.1,1821.9,5.48863]
[1743662927809,5.17,1822.1,1821.8,6.29676]
[1743662927996,5.17,1822.1,1821.8,7.475367]
[1743662928172,10.65822,1822.1,1821.7,5.48931]
[1743662928610,10.65822,1822.1,1821.7,10.97853]
[1743662928791,10.65822,1822.1,1821.8,5.48895]
[1743662931777,5.17,1822.1,1821.7,0.55]
[1743662932004,5.17,1822.1,1821.9,5.48862]
[1743662932402,5.17,1822.1,1821.9,10.97728]
[1743662933322,5.17,1822.1,1821.9,5.48862]
[1743662933493,10.65839,1822.1,1821.7,11.52856]
[1743662933692,10.65839,1822.1,1821.8,5.48903]
[1743662934079,10.65839,1822.1,1821.8,10.97796]
[1743662934306,5.17,1822.1,1821.9,5.48865]
[1743662934507,6.29532,1822.3,1821.9,6.30845]
[1743662934714,5.171,1822.2,1822.0,5.48844]
[1743662936890,10.6589,1822.2,1821.9,5.48865]
[1743662937213,10.6589,1822.2,1821.8,5.48903]
[1743662937403,10.6589,1822.2,1821.9,5.48863]
[1743662937806,16.14692,1822.2,1821.9,5.48863]
[1743662938010,16.14695,1822.2,1821.9,5.48863]
[1743662939029,10.6589,1822.2,1821.9,5.48863]
[1743662939422,10.6589,1822.2,1821.9,10.9773]
[1743662939818,5.171,1822.2,1822.0,5.48843]
[1743662940018,5.90581424,1822.5,1822.4,5.48726]
[1743662940219,0.28582424,1822.5,1822.4,5.48726]
[1743662940391,5.9233,1822.7,1822.5,5.48695]
[1743662940585,3.7523,1822.7,1822.4,10.97452]
[1743662940786,8.9233,1822.7,1822.4,5.48726]
[1743662941287,8.171,1822.7,1822.5,5.48692]
[1743662942402,8.171,1822.7,1822.4,5.48726]
[1743662942603,8.171,1822.7,1822.4,10.9744]
[1743662942787,13.65745,1822.7,1822.4,5.48714]
[1743662942991,5.171,1822.7,1822.5,5.48693]
[1743662943225,5.171,1822.7,1822.5,5.48686]
[1743662944328,5.171,1822.7,1822.5,10.97368]
[1743662944825,5.171,1822.7,1822.5,5.48682]
[1743662945218,5.171,1822.7,1822.6,5.48666]
[1743662946582,5.171,1822.7,1822.5,5.48682]
[1743662946849,5.171,1822.7,1822.6,6.035342]
[1743662947302,12.02969084,1823.0,1822.9,5.48576]
[1743662947303,0.28572084,1823.0,1822.9,5.48576]
[1743662947626,5.17,1823.2,1823.0,5.48525]
[1743662947848,5.17,1823.2,1823.1,5.48516]
[1743662948624,5.17,1823.2,1823.0,10.97061]
[1743662949631,5.17,1823.2,1823.1,5.48516]
[1743662949933,5.61999,1823.4,1823.3,5.48456]
[1743662950123,5.45573559,1823.5,1823.3,10.96912]
[1743662950322,0.12374288,1823.4,1823.3,10.96912]
[1743662950620,0.7728,1823.3,1822.9,5.48564]
[1743662950825,6.25754,1823.3,1823.0,5.48544]
[1743662951026,6.25754,1823.3,1823.1,5.48504]
[1743662951027,0.1237369,1823.2,1823.1,5.48504]
[1743662952123,0.1237369,1823.2,1823.1,6.25234]
[1743662952435,16.13812,1823.5,1823.1,6.25234]
[1743662952600,0.1237369,1823.2,1823.1,6.25234]
[1743662952800,16.13812,1823.5,1823.1,7.42611]
[1743662953035,0.12430961,1823.4,1823.1,6.25234]
[1743662953510,5.60856961,1823.4,1823.1,6.25234]
[1743662954641,11.09302961,1823.4,1823.0,5.48536]
[1743662955334,11.09302961,1823.4,1823.0,5.48532]
[1743662955712,5.60856961,1823.4,1823.0,10.97062]
[1743662955913,0.12430961,1823.4,1823.2,5.48458]
[1743662956235,0.12430961,1823.4,1823.1,5.48492]
[1743662956412,5.60856961,1823.4,1823.1,5.48492]
[1743662956614,0.12430961,1823.4,1823.1,10.96993]
[1743662956935,0.12430961,1823.4,1823.2,1.096993]
[1743662958045,0.12430961,1823.4,1823.1,5.48492]
[1743662958340,5.60870961,1823.4,1823.0,6.659202]
[1743662958507,5.48463,1823.3,1823.0,6.659202]
[1743662958708,5.59200379,1823.3,1823.0,12.144522]
[1743662958940,0.10737379,1823.3,1823.0,12.144522]
[1743662959144,0.10737379,1823.3,1823.0,6.659112]
[1743662959311,0.10737379,1823.3,1823.1,5.48515]
[1743662959511,0.89507379,1823.3,1823.1,5.48515]
[1743662959938,0.10737379,1823.3,1823.1,5.48515]
[1743662960142,0.10737379,1823.3,1823.2,5.48486]
[1743662960839,11.44166,1823.5,1823.2,5.48486]
[1743662961019,0.10737379,1823.3,1823.2,5.48486]
[1743662961225,11.44166,1823.5,1823.2,5.48486]
[1743662961410,0.10737379,1823.3,1823.2,7.45359562]
[1743662961611,8.168,1823.5,1823.2,7.45359562]
[1743662961830,0.10761234,1823.4,1823.2,7.45359562]
[1743662962021,0.10761234,1823.4,1823.2,6.70329562]
[1743662962547,0.10761234,1823.4,1823.2,1.21843562]
[1743662962840,11.07640234,1823.4,1823.1,5.48507]
[1743662963039,5.59193234,1823.4,1823.1,5.48507]
[1743662963543,11.07636234,1823.4,1823.1,5.48507]
[1743662963840,5.59193234,1823.4,1823.0,6.23572]
[1743662964152,6.30698,1823.3,1823.0,5.48542]
[1743662964444,0.10741066,1823.2,1823.0,5.48542]
[1743662965144,0.10741066,1823.2,1823.0,6.582538]
[1743662967657,0.10741066,1823.2,1823.0,12.067878]
[1743662968023,6.30698,1823.3,1823.0,12.067878]
[1743662969251,0.8224,1823.3,1823.1,5.48515]
[1743662969455,8.48403,1823.5,1823.2,5.48486]
[1743662969756,5.167,1823.4,1823.2,5.48486]
[1743662970559,0.28564149,1823.7,1823.3,9.41129095]
[1743662970736,0.1,1823.9,1823.7,5.48315]
[1743662970921,0.1,1823.9,1823.6,11.79867]
[1743662971322,0.1,1823.9,1823.7,5.48329]
[1743662971549,0.1,1823.9,1823.7,5.48321]
[1743662972242,0.1,1823.9,1823.7,10.96645]
[1743662972557,0.1,1823.9,1823.7,12.146245]
[1743662973084,0.1,1823.9,1823.7,6.663005]
[1743662973559,0.1,1823.9,1823.7,12.146225]
[1743662974054,0.1,1823.9,1823.7,6.663005]
[1743662974359,5.58291,1823.9,1823.5,10.96752]
[1743662974679,5.58291,1823.9,1823.6,5.48362]
[1743662975558,0.1,1823.9,1823.6,5.48354]
[1743662975766,0.1,1823.9,1823.7,5.48324]
[1743662978740,0.1,1823.9,1823.8,5.48305]
[1743662979447,0.1,1823.9,1823.8,6.579679]
[1743662980638,0.1,1823.9,1823.8,6.63450542]
[1743662980829,0.1,1823.9,1823.8,7.129679]
[1743662981164,0.1,1823.9,1823.8,7.911079]
[1743662981711,5.776,1825.2,1823.8,7.911079]
[1743662981712,0.7523,1824.7,1824.4,5.48125]
[1743662981838,5.61999,1824.8,1824.5,6.028945]
[1743662982179,5.61999,1824.8,1824.6,5.48048]
[1743662982333,0.1,1824.9,1824.8,5.48005]
[1743662983272,0.1,1824.9,1824.8,9.20135008]
[1743662983428,0.1,1824.9,1824.8,10.69115958]
[1743662985060,0.1,1824.9,1824.8,10.745948]
[1743662985263,0.1,1824.9,1824.8,10.74594802]
[1743662985434,0.1,1824.9,1824.8,10.69115958]
[1743662985771,0.22345716,1824.9,1824.8,10.74594802]
[1743662985944,0.1,1824.9,1824.8,10.74594815]
[1743662986275,0.1,1824.9,1824.8,10.745948]
[1743662986567,1e-05,1824.9,1824.8,11.561948]
[1743662986734,1e-05,1824.9,1824.8,11.50715958]
[1743662989461,1e-05,1824.9,1824.8,14.62366215]
[1743662990655,6.53489,1825.9,1825.7,5.4771]
[1743662990852,0.12664448,1825.8,1825.7,5.4771]
[1743662991091,6.53489,1825.9,1825.7,5.4771]
[1743662991387,0.12555792,1825.8,1825.7,5.4771]
[1743662991598,0.12555792,1825.8,1825.7,6.0271]
[1743662991759,0.1,1825.9,1825.8,5.47705]
[1743662991959,0.1,1825.9,1825.8,6.627465]
[1743662992284,0.1,1825.9,1825.8,7.177465]
[1743662992889,0.1,1825.9,1825.8,10.29396757]
[1743662993679,0.1,1825.9,1825.7,5.4771]
[1743662993987,0.1,1825.9,1825.8,6.02705]
[1743662994786,0.1,1825.9,1825.8,5.47705]
[1743662995291,0.1,1825.9,1825.8,5.5318141]
[1743662995790,0.1,1825.9,1825.8,5.47705]
[1743662995990,0.1,1825.9,1825.8,6.88411526]
[1743662998690,0.1,1825.9,1825.8,1.40706526]
[1743662998872,0.1,1825.9,1825.7,5.4771]
[1743662999690,0.1,1825.9,1825.3,3.88280257]
[1743662999691,0.9114,1825.9,1825.3,3.88280257]
[1743662999894,5.47747,1825.7,1825.4,0.05477667]
[1743663000189,6.38818,1825.9,1825.6,5.47751]
[1743663000394,0.1,1825.9,1825.7,5.47706]
[1743663000696,0.1,1825.9,1825.8,5.47705]
[1743663001305,0.21730108,1825.9,1825.8,5.47705]
[1743663001724,0.21730108,1825.9,1825.7,8.59356257]
[1743663001861,0.21730108,1825.9,1825.8,5.47705]
[1743663002061,0.21730108,1825.9,1825.8,6.88411126]
[1743663002491,0.21730108,1825.9,1825.8,6.93887551]
[1743663002688,0.21730108,1825.9,1825.8,6.88411126]
[1743663002864,0.21730108,1825.9,1825.8,6.93887543]
[1743663003069,0.21730108,1825.9,1825.8,7.43411126]
[1743663003671,0.21730108,1825.9,1825.8,6.88411126]
[1743663006098,0.21730108,1825.9,1825.8,6.93887544]
[1743663006911,0.21730108,1825.9,1825.8,7.43411126]
[1743663007287,0.21730108,1825.9,1825.8,7.48887344]
[1743663007492,0.21730108,1825.9,1825.8,7.43411126]
[1743663010113,1.03750108,1825.9,1825.8,5.47705]
[1743663010615,1.03750108,1825.9,1825.7,5.47706]
[1743663010802,1.03750108,1825.9,1825.7,10.95428]
[1743663011112,1.03750108,1825.9,1825.8,5.47705]
[1743663011113,0.21730108,1825.9,1825.8,5.47705]
[1743663011625,0.21730108,1825.9,1825.8,6.02705]
[1743663011780,0.21730108,1825.9,1825.8,7.56971126]
[1743663011982,0.21730108,1825.9,1825.8,8.40777349]
[1743663012310,0.1,1825.9,1825.8,8.35301126]
[1743663012614,0.21775977,1825.9,1825.8,8.35301126]
[1743663012818,0.1,1825.9,1825.8,8.35301126]
[1743663013036,9.77e-06,1825.9,1825.8,8.40777151]
[1743663013193,0.7563,1826.5,1826.3,5.47552]
[1743663013392,0.7563,1826.5,1826.0,5.47616]
[1743663013597,0.7563,1826.3,1826.0,5.47616]
[1743663013912,0.10960195,1826.2,1825.9,10.95335]
[1743663014118,0.10960195,1826.2,1825.9,5.47665]
[1743663014325,5.58549195,1826.2,1825.9,5.47665]
[1743663014709,0.10960195,1826.2,1825.9,5.47665]
[1743663014911,0.10960195,1826.2,1826.0,5.47633]
[1743663015110,0.10960195,1826.2,1825.9,6.17858113]
[1743663015438,5.58555195,1826.2,1825.9,6.17858113]
[1743663015620,5.47639,1826.1,1825.7,9.38505257]
[1743663015822,0.7705,1826.0,1825.7,10.95451]
[1743663016037,0.87962631,1826.0,1825.8,5.47704]
[1743663017032,0.87962631,1826.0,1825.7,5.47725]
[1743663017206,5.47687,1825.9,1825.6,5.47758]
[1743663017609,0.10865057,1825.8,1825.5,10.95582]
[1743663017840,0.10865057,1825.8,1825.5,12.43978226]
[1743663018003,10.95383,1825.9,1825.5,12.43978226]
[1743663018205,0.10754996,1825.7,1825.5,12.43978226]
[1743663018425,10.95383,1825.9,1825.5,12.43978226]
[1743663018638,0.10731202,1825.6,1825.5,5.47791]
[1743663018837,0.7941,1825.8,1825.5,5.47783]
[1743663019050,0.10731202,1825.6,1825.5,5.47783]
[1743663019357,0.10731202,1825.6,1825.5,10.95566]
[1743663019653,0.7941,1825.8,1825.5,10.95566]
[1743663019954,0.7941,1825.8,1825.5,12.36287626]
[1743663020159,0.10754996,1825.7,1825.6,5.47761]
[1743663021159,0.10754996,1825.7,1825.5,6.88504626]
[1743663021360,0.10754996,1825.7,1825.5,12.36288626]
[1743663022261,0.10754996,1825.7,1825.5,6.88504626]
[1743663023361,0.10754996,1825.7,1825.6,6.16615463]
[1743663023749,0.10754996,1825.7,1825.6,6.22092738]
[1743663023956,0.8234,1825.9,1825.7,5.4772]
[1743663024135,0.10778786,1825.8,1825.6,11.64380463]
[1743663024331,6.30023,1825.9,1825.6,0.68850463]
[1743663024533,0.7701,1825.7,1825.4,5.47824]
[1743663024732,0.7701,1825.4,1825.1,5.47914]
[1743663024940,5.58491582,1825.3,1824.9,11.9860829]
[1743663025591,0.8151,1825.2,1824.9,11.9860829]
[1743663025863,0.12715733,1825.1,1824.9,16.77790643]
[1743663026063,0.12715733,1825.1,1825.0,5.47945]
[1743663028463,0.8151,1825.2,1825.0,5.47945]
[1743663031753,0.27117126,1825.1,1825.0,5.47945]
[1743663031950,0.27117126,1825.1,1824.8,5.48]
[1743663032454,0.27117126,1825.1,1824.8,12.50099026]
[1743663032676,0.27117126,1825.1,1824.9,5.47973]
[1743663032977,0.27117126,1825.1,1824.9,10.95933]
[1743663033278,0.27117126,1825.1,1824.9,5.4796]
[1743663033664,0.27117126,1825.1,1824.9,10.9592]
[1743663033865,0.27117126,1825.1,1824.9,12.20923003]
[1743663034483,0.27117126,1825.1,1824.9,6.72963003]
[1743663034660,0.27117126,1825.1,1824.9,12.20924003]
[1743663036048,0.27117126,1825.1,1825.0,6.89354327]
[1743663036243,5.9682,1825.4,1825.2,5.47873]
[1743663036565,0.27087461,1825.3,1825.2,5.47873]
[1743663036767,5.9682,1825.4,1825.0,0.55]
[1743663036975,0.795,1825.1,1824.9,5.4796]
[1743663037477,0.2709358,1825.0,1824.9,5.4796]
[1743663037650,0.2709358,1825.0,1824.9,9.20089704]
[1743663037847,5.17,1825.4,1825.1,5.47887]
[1743663038266,0.27079547,1825.3,1825.0,5.47934]